[Event "Titled Tuesday Blitz January 03 Late 2023"]
[White "Batista, Renato Luiz"]
[Black "Mazibuko, Khanya"]
[WhiteFideId "2106540"]
[BlackFideId "14321041"]
[WhiteElo "2174"]
[BlackElo "1913"]
[Result "0-1"]
[Round "06"]
[TimeControl "180+2"]
[Date "2023.01.03"]
[WhiteClock "0:00:09"]
[BlackClock "0:01:58"]

1. e4 {[%clk 0:02:38]}  e5 {[%clk 0:02:56]} 2. Nf3 {[%clk 0:02:38]}  Nc6 {[%clk 0:02:56]} 3. Bb5 {[%clk 0:02:34]}  a6 {[%clk 0:02:56]} 4. Ba4 {[%clk 0:02:32]}  Nf6 {[%clk 0:02:56]} 5. O-O {[%clk 0:02:00]}  Be7 {[%clk 0:02:55]} 6. Bxc6 {[%clk 0:02:00]}  dxc6 {[%clk 0:02:54]} 7. Qe1 {[%clk 0:02:00]}  Nd7 {[%clk 0:02:41]} 8. b3 {[%clk 0:01:59]}  Bd6 {[%clk 0:02:38]} 9. Bb2 {[%clk 0:01:59]}  f6 {[%clk 0:02:37]} 10. d3 {[%clk 0:01:43]}  Nf8 {[%clk 0:02:35]} 11. Nbd2 {[%clk 0:01:29]}  Ne6 {[%clk 0:02:34]} 12. Nc4 {[%clk 0:01:28]}  O-O {[%clk 0:02:34]} 13. Ne3 {[%clk 0:01:17]}  Qe7 {[%clk 0:02:20]} 14. h3 {[%clk 0:01:13]}  Ba3 {[%clk 0:02:18]} 15. Bxa3 {[%clk 0:00:14]}  Qxa3 {[%clk 0:02:19]} 16. Nf5 {[%clk 0:00:09]}  Rd8 {[%clk 0:02:09]} 17. Nh2 {[%clk 0:00:06]}  Qc5 {[%clk 0:02:07]} 18. Kh1 {[%clk 0:00:05]}  Nd4 {[%clk 0:02:05]} 19. Qd1 {[%clk 0:00:05]}  Nxf5 {[%clk 0:02:03]} 20. exf5 {[%clk 0:00:06]}  Bxf5 {[%clk 0:02:03]} 21. Qh5 {[%clk 0:00:06]}  Bg6 {[%clk 0:02:02]} 22. Qg4 {[%clk 0:00:07]}  Qxc2 {[%clk 0:02:00]} 23. Rac1 {[%clk 0:00:07]}  Qxa2 {[%clk 0:02:00]} 24. Rcd1 {[%clk 0:00:08]}  Rd4 {[%clk 0:01:58]} 25. Nf3 {[%clk 0:00:09]}  Rxg4 {[%clk 0:01:58]} 0-1


[Site "https://www.chess.com"]

[Event "Titled Tuesday Blitz January 03 Late 2023"]
[White "Mathur, Rithwik"]
[Black "Roman, Rodrigo"]
[WhiteFideId "30913667"]
[BlackFideId "3701220"]
[WhiteElo "2111"]
[BlackElo "2058"]
[Result "0-1"]
[Round "06"]
[TimeControl "180+2"]
[Date "2023.01.03"]
[WhiteClock "0:00:10"]
[BlackClock "0:00:25"]

1. d4 {[%clk 0:02:53]}  Nf6 {[%clk 0:02:59]} 2. Nf3 {[%clk 0:02:54]}  e6 {[%clk 0:02:51]} 3. Bf4 {[%clk 0:02:47]}  b6 {[%clk 0:02:49]} 4. e3 {[%clk 0:02:42]}  Bb7 {[%clk 0:02:50]} 5. Nbd2 {[%clk 0:02:42]}  Be7 {[%clk 0:02:50]} 6. h3 {[%clk 0:02:42]}  d6 {[%clk 0:02:50]} 7. Bd3 {[%clk 0:02:41]}  Nbd7 {[%clk 0:02:51]} 8. O-O {[%clk 0:02:41]}  h6 {[%clk 0:02:49]} 9. Bh2 {[%clk 0:02:40]}  d5 {[%clk 0:02:44]} 10. Ne5 {[%clk 0:02:34]}  a6 {[%clk 0:02:39]} 11. Qe2 {[%clk 0:02:15]}  Nxe5 {[%clk 0:02:37]} 12. Bxe5 {[%clk 0:02:14]}  c5 {[%clk 0:02:32]} 13. c3 {[%clk 0:02:14]}  b5 {[%clk 0:02:23]} 14. e4 {[%clk 0:02:10]}  cxd4 {[%clk 0:02:20]} 15. Bxd4 {[%clk 0:01:38]}  dxe4 {[%clk 0:02:13]} 16. Nxe4 {[%clk 0:01:39]}  O-O {[%clk 0:02:13]} 17. Rad1 {[%clk 0:01:35]}  Nd5 {[%clk 0:02:11]} 18. Qg4 {[%clk 0:01:27]}  g6 {[%clk 0:02:07]} 19. Nc5 {[%clk 0:00:33]}  Bxc5 {[%clk 0:00:50]} 20. Bxc5 {[%clk 0:00:17]}  Qg5 {[%clk 0:00:42]} 21. Qxg5 {[%clk 0:00:16]}  hxg5 {[%clk 0:00:42]} 22. Bxf8 {[%clk 0:00:15]}  Kxf8 {[%clk 0:00:43]} 23. Be4 {[%clk 0:00:16]}  f5 {[%clk 0:00:43]} 24. Bf3 {[%clk 0:00:16]}  Kf7 {[%clk 0:00:42]} 25. Rfe1 {[%clk 0:00:17]}  Kf6 {[%clk 0:00:42]} 26. Re2 {[%clk 0:00:16]}  Nf4 {[%clk 0:00:39]} 27. Bxb7 {[%clk 0:00:15]}  Nxe2+ {[%clk 0:00:37]} 28. Kf1 {[%clk 0:00:15]}  Ra7 {[%clk 0:00:38]} 29. Kxe2 {[%clk 0:00:13]}  Rxb7 {[%clk 0:00:38]} 30. Rd6 {[%clk 0:00:13]}  a5 {[%clk 0:00:38]} 31. Ra6 {[%clk 0:00:13]}  a4 {[%clk 0:00:38]} 32. b3 {[%clk 0:00:12]}  axb3 {[%clk 0:00:34]} 33. axb3 {[%clk 0:00:13]}  Rc7 {[%clk 0:00:34]} 34. Rb6 {[%clk 0:00:12]}  Rxc3 {[%clk 0:00:34]} 35. Rxb5 {[%clk 0:00:13]}  Rc2+ {[%clk 0:00:34]} 36. Kf1 {[%clk 0:00:13]}  Rb2 {[%clk 0:00:32]} 37. g3 {[%clk 0:00:14]}  e5 {[%clk 0:00:29]} 38. Kg2 {[%clk 0:00:14]}  e4 {[%clk 0:00:30]} 39. b4 {[%clk 0:00:13]}  f4 {[%clk 0:00:29]} 40. Kg1 {[%clk 0:00:10]}  Rb1+ {[%clk 0:00:27]} 41. Kg2 {[%clk 0:00:10]}  f3+ {[%clk 0:00:28]} 42. Kh2 {[%clk 0:00:10]}  Rf1 {[%clk 0:00:28]} 43. Rb6+ {[%clk 0:00:10]}  Kg7 {[%clk 0:00:28]} 44. Re6 {[%clk 0:00:09]}  Rxf2+ {[%clk 0:00:29]} 45. Kg1 {[%clk 0:00:10]}  Re2 {[%clk 0:00:28]} 46. b5 {[%clk 0:00:11]}  e3 {[%clk 0:00:28]} 47. b6 {[%clk 0:00:10]}  Re1+ {[%clk 0:00:27]} 48. Kh2 {[%clk 0:00:10]}  e2 {[%clk 0:00:26]} 49. b7 {[%clk 0:00:10]}  Rb1 {[%clk 0:00:26]} 50. Re7+ {[%clk 0:00:09]}  Kf6 {[%clk 0:00:26]} 51. Re8 {[%clk 0:00:09]}  Rxb7 {[%clk 0:00:25]} 52. Rf8+ {[%clk 0:00:10]}  Rf7 {[%clk 0:00:25]} 0-1


[Site "https://www.chess.com"]

[Event "Titled Tuesday Blitz January 03 Late 2023"]
[White "Smith, Garrett L"]
[Black "Jorajuria Mendoza, Algol"]
[WhiteFideId "2024829"]
[BlackFideId "5128897"]
[WhiteElo "2047"]
[BlackElo "2069"]
[Result "1-0"]
[Round "06"]
[TimeControl "180+2"]
[Date "2023.01.03"]
[WhiteClock "0:00:25"]
[BlackClock "0:00:08"]

1. e4 {[%clk 0:03:00]}  c5 {[%clk 0:03:00]} 2. a3 {[%clk 0:02:57]}  g6 {[%clk 0:02:56]} 3. b4 {[%clk 0:02:57]}  Bg7 {[%clk 0:02:55]} 4. Nc3 {[%clk 0:02:58]}  b6 {[%clk 0:02:45]} 5. bxc5 {[%clk 0:02:57]}  bxc5 {[%clk 0:02:46]} 6. Rb1 {[%clk 0:02:56]}  Nc6 {[%clk 0:02:45]} 7. Nf3 {[%clk 0:02:54]}  Nf6 {[%clk 0:02:42]} 8. Bc4 {[%clk 0:02:52]}  O-O {[%clk 0:02:39]} 9. O-O {[%clk 0:02:50]}  e6 {[%clk 0:02:39]} 10. d3 {[%clk 0:02:36]}  d5 {[%clk 0:02:37]} 11. exd5 {[%clk 0:02:30]}  exd5 {[%clk 0:02:37]} 12. Ba2 {[%clk 0:02:31]}  Bg4 {[%clk 0:02:06]} 13. Bg5 {[%clk 0:02:28]}  d4 {[%clk 0:01:50]} 14. Ne4 {[%clk 0:02:03]}  Ne5 {[%clk 0:01:41]} 15. Ned2 {[%clk 0:01:39]}  h6 {[%clk 0:01:38]} 16. Bh4 {[%clk 0:01:39]}  Qd6 {[%clk 0:01:33]} 17. Bg3 {[%clk 0:01:37]}  Nh5 {[%clk 0:01:28]} 18. Re1 {[%clk 0:01:12]}  Nxg3 {[%clk 0:01:26]} 19. hxg3 {[%clk 0:01:11]}  Rae8 {[%clk 0:01:20]} 20. Rb7 {[%clk 0:01:08]}  Qc6 {[%clk 0:01:15]} 21. Rb2 {[%clk 0:01:04]}  Bxf3 {[%clk 0:01:06]} 22. gxf3 {[%clk 0:01:03]}  Kh7 {[%clk 0:00:42]} 23. f4 {[%clk 0:01:03]}  Nd7 {[%clk 0:00:40]} 24. Rb1 {[%clk 0:00:56]}  Rxe1+ {[%clk 0:00:35]} 25. Qxe1 {[%clk 0:00:55]}  Nf6 {[%clk 0:00:36]} 26. Qe2 {[%clk 0:00:54]}  Re8 {[%clk 0:00:36]} 27. Qf3 {[%clk 0:00:53]}  Qa4 {[%clk 0:00:36]} 28. Bxf7 {[%clk 0:00:49]}  Re7 {[%clk 0:00:36]} 29. Bb3 {[%clk 0:00:48]}  Qxa3 {[%clk 0:00:37]} 30. f5 {[%clk 0:00:47]}  g5 {[%clk 0:00:34]} 31. Ne4 {[%clk 0:00:44]}  a5 {[%clk 0:00:17]} 32. Kg2 {[%clk 0:00:36]}  a4 {[%clk 0:00:17]} 33. Nxf6+ {[%clk 0:00:31]}  Bxf6 {[%clk 0:00:16]} 34. Bd5 {[%clk 0:00:32]}  Qc3 {[%clk 0:00:16]} 35. Be4 {[%clk 0:00:29]}  Qxc2 {[%clk 0:00:16]} 36. Rb6 {[%clk 0:00:30]}  Rf7 {[%clk 0:00:13]} 37. Bd5 {[%clk 0:00:28]}  Rf8 {[%clk 0:00:12]} 38. Qe4 {[%clk 0:00:27]}  a3 {[%clk 0:00:08]} 39. Rxf6 {[%clk 0:00:25]} 1-0


[Site "https://www.chess.com"]

[Event "Titled Tuesday Blitz January 03 Late 2023"]
[White "Balint, Vilmos"]
[Black "Nissinen, Niilo Man"]
[WhiteFideId "718050"]
[BlackFideId "30950767"]
[WhiteElo "2169"]
[BlackElo "1958"]
[Result "1-0"]
[Round "06"]
[TimeControl "180+2"]
[Date "2023.01.03"]
[WhiteClock "0:01:53"]
[BlackClock "0:00:30"]

1. e4 {[%clk 0:03:00]}  c5 {[%clk 0:02:59]} 2. Nf3 {[%clk 0:03:00]}  e6 {[%clk 0:03:00]} 3. d4 {[%clk 0:03:01]}  cxd4 {[%clk 0:03:01]} 4. Nxd4 {[%clk 0:03:01]}  Nc6 {[%clk 0:02:58]} 5. g3 {[%clk 0:03:00]}  d5 {[%clk 0:02:53]} 6. Bg2 {[%clk 0:02:48]}  Nxd4 {[%clk 0:02:18]} 7. Qxd4 {[%clk 0:02:44]}  dxe4 {[%clk 0:02:19]} 8. Qxd8+ {[%clk 0:02:43]}  Kxd8 {[%clk 0:02:20]} 9. Bxe4 {[%clk 0:02:43]}  Bd6 {[%clk 0:02:15]} 10. Nc3 {[%clk 0:02:38]}  a6 {[%clk 0:02:14]} 11. Be3 {[%clk 0:02:38]}  Nf6 {[%clk 0:02:07]} 12. O-O-O {[%clk 0:02:34]}  Ke7 {[%clk 0:02:05]} 13. Bg2 {[%clk 0:02:31]}  Rb8 {[%clk 0:01:35]} 14. Rhe1 {[%clk 0:02:29]}  Bd7 {[%clk 0:01:22]} 15. Ba7 {[%clk 0:02:25]}  Ra8 {[%clk 0:01:22]} 16. Bd4 {[%clk 0:02:24]}  Rab8 {[%clk 0:01:19]} 17. Bxf6+ {[%clk 0:02:24]}  gxf6 {[%clk 0:01:19]} 18. Nd5+ {[%clk 0:02:24]}  Kd8 {[%clk 0:01:07]} 19. Nxf6 {[%clk 0:02:24]}  Kc7 {[%clk 0:01:08]} 20. Rd2 {[%clk 0:02:17]}  Bc6 {[%clk 0:00:58]} 21. Bxc6 {[%clk 0:02:04]}  Kxc6 {[%clk 0:00:59]} 22. Red1 {[%clk 0:02:02]}  Rbd8 {[%clk 0:00:38]} 23. h4 {[%clk 0:02:02]}  h6 {[%clk 0:00:35]} 24. Ng4 {[%clk 0:01:55]}  f5 {[%clk 0:00:32]} 25. Rxd6+ {[%clk 0:01:53]}  Rxd6 {[%clk 0:00:30]} 26. Ne5+ {[%clk 0:01:53]} 1-0


[Site "https://www.chess.com"]

[Event "Titled Tuesday Blitz January 03 Late 2023"]
[White "Almagro Mazariegos, Sebastian"]
[Black "Harish, Neeraj"]
[WhiteFideId "2221640"]
[BlackFideId "30958130"]
[WhiteElo "2280"]
[BlackElo "2232"]
[Result "1-0"]
[Round "06"]
[TimeControl "180+2"]
[Date "2023.01.03"]
[WhiteClock "0:00:16"]
[BlackClock "0:00:03"]

1. e4 {[%clk 0:02:56]}  c5 {[%clk 0:02:58]} 2. Nf3 {[%clk 0:02:54]}  Nc6 {[%clk 0:02:57]} 3. d4 {[%clk 0:02:55]}  cxd4 {[%clk 0:02:58]} 4. Nxd4 {[%clk 0:02:55]}  Nf6 {[%clk 0:02:57]} 5. Nc3 {[%clk 0:02:55]}  e5 {[%clk 0:02:57]} 6. Ndb5 {[%clk 0:02:55]}  d6 {[%clk 0:02:57]} 7. Bg5 {[%clk 0:02:56]}  a6 {[%clk 0:02:56]} 8. Na3 {[%clk 0:02:56]}  b5 {[%clk 0:02:56]} 9. Nd5 {[%clk 0:02:56]}  Be7 {[%clk 0:02:57]} 10. Bxf6 {[%clk 0:02:57]}  Bxf6 {[%clk 0:02:57]} 11. c4 {[%clk 0:02:57]}  b4 {[%clk 0:02:57]} 12. Nc2 {[%clk 0:02:57]}  O-O {[%clk 0:02:58]} 13. g3 {[%clk 0:02:58]}  a5 {[%clk 0:02:57]} 14. Bg2 {[%clk 0:02:58]}  Bg5 {[%clk 0:02:55]} 15. O-O {[%clk 0:02:58]}  Be6 {[%clk 0:02:55]} 16. b3 {[%clk 0:02:57]}  Ne7 {[%clk 0:02:44]} 17. Nxe7+ {[%clk 0:02:55]}  Qxe7 {[%clk 0:02:37]} 18. Qd3 {[%clk 0:02:55]}  Rad8 {[%clk 0:02:24]} 19. a3 {[%clk 0:02:48]}  bxa3 {[%clk 0:01:49]} 20. Rxa3 {[%clk 0:02:45]}  Qc7 {[%clk 0:01:49]} 21. Rfa1 {[%clk 0:02:39]}  Ra8 {[%clk 0:01:46]} 22. Bf1 {[%clk 0:02:34]}  Kh8 {[%clk 0:01:36]} 23. b4 {[%clk 0:02:31]}  f5 {[%clk 0:01:30]} 24. Rxa5 {[%clk 0:02:02]}  Rxa5 {[%clk 0:01:28]} 25. Rxa5 {[%clk 0:01:49]}  fxe4 {[%clk 0:01:24]} 26. Qxe4 {[%clk 0:01:49]}  d5 {[%clk 0:01:15]} 27. Rxd5 {[%clk 0:01:07]}  Bxd5 {[%clk 0:01:13]} 28. Qxd5 {[%clk 0:01:08]}  h6 {[%clk 0:00:55]} 29. c5 {[%clk 0:01:07]}  Rd8 {[%clk 0:00:46]} 30. Qe4 {[%clk 0:01:07]}  Rd2 {[%clk 0:00:42]} 31. Bd3 {[%clk 0:01:02]}  Kg8 {[%clk 0:00:24]} 32. h4 {[%clk 0:00:59]}  Bf6 {[%clk 0:00:17]} 33. Ne3 {[%clk 0:00:47]}  Qd7 {[%clk 0:00:13]} 34. Qh7+ {[%clk 0:00:42]}  Kf8 {[%clk 0:00:13]} 35. Bc4 {[%clk 0:00:42]}  Rd1+ {[%clk 0:00:06]} 36. Kh2 {[%clk 0:00:28]}  Rd2 {[%clk 0:00:05]} 37. Kg1 {[%clk 0:00:20]}  Qd4 {[%clk 0:00:02]} 38. Qg8+ {[%clk 0:00:19]}  Ke7 {[%clk 0:00:03]} 39. Nf5+ {[%clk 0:00:16]}  Kd7 {[%clk 0:00:03]} 40. Nxd4 {[%clk 0:00:16]} 1-0


[Site "https://www.chess.com"]

[Event "Titled Tuesday Blitz January 03 Late 2023"]
[White "Kostiukov, Alexandr"]
[Black "Guevara Sanchez, Erick Marvin"]
[WhiteFideId "14108100"]
[BlackFideId "6700136"]
[WhiteElo "2271"]
[BlackElo "2073"]
[Result "1-0"]
[Round "06"]
[TimeControl "180+2"]
[Date "2023.01.03"]
[WhiteClock "0:00:06"]
[BlackClock "0:00:10"]

1. e4 {[%clk 0:02:54]}  c5 {[%clk 0:03:00]} 2. Nf3 {[%clk 0:02:53]}  Nc6 {[%clk 0:03:00]} 3. d4 {[%clk 0:02:53]}  cxd4 {[%clk 0:03:01]} 4. Nxd4 {[%clk 0:02:53]}  Nf6 {[%clk 0:03:00]} 5. Nc3 {[%clk 0:02:51]}  e5 {[%clk 0:03:00]} 6. Ndb5 {[%clk 0:02:48]}  d6 {[%clk 0:03:01]} 7. Bg5 {[%clk 0:02:47]}  a6 {[%clk 0:03:00]} 8. Na3 {[%clk 0:02:46]}  b5 {[%clk 0:03:01]} 9. Nd5 {[%clk 0:02:43]}  Be7 {[%clk 0:03:02]} 10. Bxf6 {[%clk 0:02:43]}  Bxf6 {[%clk 0:03:03]} 11. c3 {[%clk 0:02:42]}  Bg5 {[%clk 0:03:02]} 12. Nc2 {[%clk 0:02:31]}  Ne7 {[%clk 0:03:03]} 13. Nce3 {[%clk 0:02:27]}  Bxe3 {[%clk 0:03:02]} 14. Nxe3 {[%clk 0:02:26]}  Be6 {[%clk 0:03:02]} 15. Be2 {[%clk 0:02:20]}  O-O {[%clk 0:03:02]} 16. O-O {[%clk 0:02:19]}  d5 {[%clk 0:02:57]} 17. exd5 {[%clk 0:02:19]}  Nxd5 {[%clk 0:02:58]} 18. Nxd5 {[%clk 0:02:13]}  Bxd5 {[%clk 0:02:54]} 19. Qc2 {[%clk 0:02:06]}  Qg5 {[%clk 0:02:49]} 20. f3 {[%clk 0:02:00]}  Rfd8 {[%clk 0:02:40]} 21. Rae1 {[%clk 0:01:58]}  Qe3+ {[%clk 0:02:37]} 22. Kh1 {[%clk 0:01:56]}  Qg5 {[%clk 0:02:38]} 23. a3 {[%clk 0:01:41]}  h6 {[%clk 0:02:34]} 24. Bd3 {[%clk 0:01:29]}  Rac8 {[%clk 0:02:31]} 25. Rf2 {[%clk 0:01:21]}  Bc4 {[%clk 0:02:23]} 26. Bxc4 {[%clk 0:01:16]}  Rxc4 {[%clk 0:02:23]} 27. Rfe2 {[%clk 0:01:14]}  Re8 {[%clk 0:02:15]} 28. b3 {[%clk 0:01:02]}  Rc7 {[%clk 0:02:10]} 29. c4 {[%clk 0:01:03]}  bxc4 {[%clk 0:02:11]} 30. bxc4 {[%clk 0:01:03]}  Qf6 {[%clk 0:02:04]} 31. Qa4 {[%clk 0:00:55]}  Ree7 {[%clk 0:01:37]} 32. Qb4 {[%clk 0:00:47]}  Rb7 {[%clk 0:01:33]} 33. Qc3 {[%clk 0:00:46]}  Rbc7 {[%clk 0:01:33]} 34. c5 {[%clk 0:00:40]}  Rc6 {[%clk 0:01:03]} 35. Rxe5 {[%clk 0:00:36]}  Rxe5 {[%clk 0:01:03]} 36. Qxe5 {[%clk 0:00:35]}  Re6 {[%clk 0:00:58]} 37. Qb8+ {[%clk 0:00:34]}  Kh7 {[%clk 0:00:57]} 38. Qb1+ {[%clk 0:00:28]}  Qg6 {[%clk 0:00:48]} 39. Qxg6+ {[%clk 0:00:23]}  Rxg6 {[%clk 0:00:49]} 40. Rc1 {[%clk 0:00:16]}  Rc6 {[%clk 0:00:49]} 41. Kg1 {[%clk 0:00:15]}  Kg6 {[%clk 0:00:50]} 42. Kf2 {[%clk 0:00:16]}  Kf5 {[%clk 0:00:50]} 43. Ke3 {[%clk 0:00:17]}  Ke5 {[%clk 0:00:51]} 44. Rc4 {[%clk 0:00:16]}  Kd5 {[%clk 0:00:47]} 45. Kd3 {[%clk 0:00:14]}  Rxc5 {[%clk 0:00:37]} 46. Rd4+ {[%clk 0:00:15]}  Ke5 {[%clk 0:00:34]} 47. Rd7 {[%clk 0:00:14]}  Rd5+ {[%clk 0:00:31]} 48. Rxd5+ {[%clk 0:00:14]}  Kxd5 {[%clk 0:00:32]} 49. Kc3 {[%clk 0:00:13]}  Kc5 {[%clk 0:00:31]} 50. Kb3 {[%clk 0:00:12]}  Kb5 {[%clk 0:00:29]} 51. h4 {[%clk 0:00:11]}  h5 {[%clk 0:00:28]} 52. g4 {[%clk 0:00:10]}  f6 {[%clk 0:00:15]} 53. gxh5 {[%clk 0:00:08]}  f5 {[%clk 0:00:12]} 54. f4 {[%clk 0:00:06]}  Kc5 {[%clk 0:00:11]} 55. Ka4 {[%clk 0:00:06]}  Kc4 {[%clk 0:00:09]} 56. Ka5 {[%clk 0:00:06]}  Kc5 {[%clk 0:00:10]} 57. Kxa6 {[%clk 0:00:06]}  Kc6 {[%clk 0:00:10]} 58. a4 {[%clk 0:00:06]}  Kc5 {[%clk 0:00:08]} 59. Kb7 {[%clk 0:00:03]}  Kb4 {[%clk 0:00:08]} 60. Kc7 {[%clk 0:00:04]}  Kxa4 {[%clk 0:00:09]} 61. Kd6 {[%clk 0:00:05]}  Kb4 {[%clk 0:00:10]} 62. Ke5 {[%clk 0:00:06]} 1-0


[Site "https://www.chess.com"]

[Event "Titled Tuesday Blitz January 03 Late 2023"]
[White "Lutz, Igor Oscar"]
[Black "Hernandez Sanchez, Elvis De La Caridad"]
[WhiteFideId "2110806"]
[BlackFideId "6400353"]
[WhiteElo "1969"]
[BlackElo "2243"]
[Result "0-1"]
[Round "06"]
[TimeControl "180+2"]
[Date "2023.01.03"]
[WhiteClock "0:01:50"]
[BlackClock "0:02:32"]

1. d4 {[%clk 0:03:00]}  Nf6 {[%clk 0:02:58]} 2. c4 {[%clk 0:03:01]}  g6 {[%clk 0:02:58]} 3. Nc3 {[%clk 0:03:00]}  Bg7 {[%clk 0:02:58]} 4. e4 {[%clk 0:03:00]}  d6 {[%clk 0:02:58]} 5. Nf3 {[%clk 0:03:01]}  O-O {[%clk 0:02:58]} 6. Be2 {[%clk 0:03:01]}  e5 {[%clk 0:02:58]} 7. Be3 {[%clk 0:03:02]}  h6 {[%clk 0:02:57]} 8. Rc1 {[%clk 0:02:51]}  Ng4 {[%clk 0:02:52]} 9. d5 {[%clk 0:02:44]}  Nxe3 {[%clk 0:02:50]} 10. fxe3 {[%clk 0:02:45]}  a5 {[%clk 0:02:49]} 11. h4 {[%clk 0:02:25]}  Na6 {[%clk 0:02:48]} 12. h5 {[%clk 0:02:22]}  g5 {[%clk 0:02:46]} 13. Kd2 {[%clk 0:02:15]}  Nc5 {[%clk 0:02:44]} 14. Qf1 {[%clk 0:02:08]}  f5 {[%clk 0:02:43]} 15. exf5 {[%clk 0:02:06]}  Bxf5 {[%clk 0:02:44]} 16. Qf2 {[%clk 0:01:54]}  c6 {[%clk 0:02:36]} 17. Qg3 {[%clk 0:01:50]}  b5 {[%clk 0:02:32]} 0-1


[Site "https://www.chess.com"]

[Event "Titled Tuesday Blitz January 03 Late 2023"]
[White "Caruana, Fabiano"]
[Black "Zierk, Steven"]
[WhiteFideId "2020009"]
[BlackFideId "2034255"]
[WhiteElo "2764"]
[BlackElo "2488"]
[Result "0-1"]
[Round "07"]
[TimeControl "180+2"]
[Date "2023.01.03"]
[WhiteClock "0:00:06"]
[BlackClock "0:00:11"]

1. c4 {[%clk 0:03:00]}  e6 {[%clk 0:02:55]} 2. Nc3 {[%clk 0:03:01]}  f5 {[%clk 0:02:53]} 3. g3 {[%clk 0:03:00]}  Nf6 {[%clk 0:02:53]} 4. Bg2 {[%clk 0:03:00]}  d5 {[%clk 0:02:54]} 5. cxd5 {[%clk 0:02:56]}  exd5 {[%clk 0:02:54]} 6. d4 {[%clk 0:02:56]}  Bd6 {[%clk 0:02:49]} 7. Bf4 {[%clk 0:02:55]}  Bxf4 {[%clk 0:02:48]} 8. gxf4 {[%clk 0:02:56]}  c6 {[%clk 0:02:45]} 9. Nf3 {[%clk 0:02:57]}  O-O {[%clk 0:02:37]} 10. e3 {[%clk 0:02:57]}  a5 {[%clk 0:02:33]} 11. Ne5 {[%clk 0:02:56]}  Ne4 {[%clk 0:02:31]} 12. O-O {[%clk 0:02:54]}  Nd7 {[%clk 0:02:28]} 13. f3 {[%clk 0:02:47]}  Nd6 {[%clk 0:02:28]} 14. Rf2 {[%clk 0:02:45]}  Nxe5 {[%clk 0:02:20]} 15. dxe5 {[%clk 0:02:15]}  Nc4 {[%clk 0:02:20]} 16. Qd4 {[%clk 0:02:13]}  Qb6 {[%clk 0:02:06]} 17. Na4 {[%clk 0:02:00]}  Qa7 {[%clk 0:01:57]} 18. Re1 {[%clk 0:01:50]}  Qxd4 {[%clk 0:01:30]} 19. exd4 {[%clk 0:01:51]}  Re8 {[%clk 0:01:25]} 20. Bf1 {[%clk 0:01:46]}  Be6 {[%clk 0:01:21]} 21. Nc5 {[%clk 0:01:42]}  b6 {[%clk 0:01:20]} 22. Nxe6 {[%clk 0:01:39]}  Rxe6 {[%clk 0:01:20]} 23. Rc2 {[%clk 0:01:34]}  b5 {[%clk 0:01:10]} 24. a4 {[%clk 0:01:26]}  bxa4 {[%clk 0:00:59]} 25. Bxc4 {[%clk 0:01:20]}  dxc4 {[%clk 0:01:00]} 26. Rxc4 {[%clk 0:01:20]}  Rb8 {[%clk 0:00:59]} 27. Re2 {[%clk 0:01:13]}  Rb4 {[%clk 0:00:50]} 28. Rec2 {[%clk 0:01:13]}  Re8 {[%clk 0:00:47]} 29. Kf2 {[%clk 0:00:53]}  Reb8 {[%clk 0:00:33]} 30. Rxc6 {[%clk 0:00:47]}  Rxb2 {[%clk 0:00:32]} 31. Rxb2 {[%clk 0:00:23]}  Rxb2+ {[%clk 0:00:33]} 32. Ke3 {[%clk 0:00:22]}  Rb3+ {[%clk 0:00:26]} 33. Ke2 {[%clk 0:00:22]}  a3 {[%clk 0:00:23]} 34. Rc5 {[%clk 0:00:21]}  Rb2+ {[%clk 0:00:20]} 35. Kd3 {[%clk 0:00:19]}  Rb3+ {[%clk 0:00:20]} 36. Ke2 {[%clk 0:00:11]}  Rb2+ {[%clk 0:00:18]} 37. Ke3 {[%clk 0:00:11]}  Rb3+ {[%clk 0:00:17]} 38. Kf2 {[%clk 0:00:10]}  Rb2+ {[%clk 0:00:15]} 39. Kg3 {[%clk 0:00:10]}  a2 {[%clk 0:00:08]} 40. Rxa5 {[%clk 0:00:10]}  Rd2 {[%clk 0:00:09]} 41. Ra8+ {[%clk 0:00:05]}  Kf7 {[%clk 0:00:09]} 42. Ra7+ {[%clk 0:00:06]}  Ke6 {[%clk 0:00:08]} 43. h4 {[%clk 0:00:05]}  h5 {[%clk 0:00:07]} 44. Ra6+ {[%clk 0:00:05]}  Ke7 {[%clk 0:00:07]} 45. Ra7+ {[%clk 0:00:05]}  Ke6 {[%clk 0:00:07]} 46. Ra5 {[%clk 0:00:05]}  g6 {[%clk 0:00:05]} 47. Ra6+ {[%clk 0:00:05]}  Kd5 {[%clk 0:00:04]} 48. Ra4 {[%clk 0:00:02]}  Re2 {[%clk 0:00:04]} 49. Kh3 {[%clk 0:00:01]}  Rf2 {[%clk 0:00:04]} 50. Kg3 {[%clk 0:00:02]}  Re2 {[%clk 0:00:04]} 51. Ra8 {[%clk 0:00:02]}  Kxd4 {[%clk 0:00:04]} 52. e6 {[%clk 0:00:02]}  Kc3 {[%clk 0:00:04]} 53. e7 {[%clk 0:00:03]}  Kb2 {[%clk 0:00:04]} 54. Rb8+ {[%clk 0:00:03]}  Kc1 {[%clk 0:00:04]} 55. Ra8 {[%clk 0:00:03]}  Kb1 {[%clk 0:00:04]} 56. Rb8+ {[%clk 0:00:04]}  Kc1 {[%clk 0:00:04]} 57. e8=Q {[%clk 0:00:04]}  Rxe8 {[%clk 0:00:04]} 58. Rxe8 {[%clk 0:00:05]}  a1=Q {[%clk 0:00:04]} 59. Re1+ {[%clk 0:00:05]}  Kb2 {[%clk 0:00:05]} 60. Rxa1 {[%clk 0:00:05]}  Kxa1 {[%clk 0:00:05]} 61. Kf2 {[%clk 0:00:06]}  Kb2 {[%clk 0:00:06]} 62. Ke3 {[%clk 0:00:05]}  Kc3 {[%clk 0:00:07]} 63. Ke2 {[%clk 0:00:06]}  Kc2 {[%clk 0:00:07]} 64. Ke3 {[%clk 0:00:06]}  Kd1 {[%clk 0:00:07]} 65. Kd3 {[%clk 0:00:04]}  Ke1 {[%clk 0:00:07]} 66. Ke3 {[%clk 0:00:05]}  Kf1 {[%clk 0:00:08]} 67. Kd4 {[%clk 0:00:05]}  Kf2 {[%clk 0:00:08]} 68. Ke5 {[%clk 0:00:05]}  Kxf3 {[%clk 0:00:09]} 69. Kf6 {[%clk 0:00:06]}  Kxf4 {[%clk 0:00:10]} 70. Kxg6 {[%clk 0:00:06]}  Kg4 {[%clk 0:00:11]} 0-1


[Site "https://www.chess.com"]